fUSD/lending_fUSD_20260315
["ID","MTS","AMOUNT","RATE_DAILY","PERIOD"]
[408404695,1773570647953,-500.0,0.00038463,2]
[408404696,1773570647961,-500.0,0.00038463,2]
[408404697,1773570647970,-500.0,0.00038463,2]
[408404698,1773570647978,-500.0,0.00038463,2]
[408404699,1773570647987,-500.0,0.00038463,2]
[408404700,1773570647996,-500.0,0.00038463,2]
[408404701,1773570648005,-500.0,0.00038463,2]
[408404702,1773570648013,-500.0,0.00038463,2]
[408404703,1773570648022,-500.0,0.00038463,2]
[408404704,1773570648031,-560.0,0.00038463,2]
[408404705,1773570648040,-9868.05866926,0.000385,30]
[408404706,1773570648049,-246.1232,0.000385,30]
[408404707,1773570648058,-262.185,0.000385,120]
[408404708,1773570648067,-262.185,0.000385,120]
[408404709,1773570648076,-262.185,0.000385,120]
[408404710,1773570648085,-262.185,0.000385,120]
[408404711,1773570648094,-500.0,0.000387,120]
[408404712,1773570648103,-1044.72351194,0.000387,2]
[408404713,1773570648112,-246.1232,0.000387,30]
[408404714,1773570648121,-158.0,0.00038721,3]
[408404715,1773570648130,-3189.76696834,0.0003889,30]
[408404716,1773570648140,-245.19873486,0.000389,30]
[408404717,1773570648148,-246.1232,0.000389,30]
[408404718,1773570648157,-1206.8992,0.0003895,2]
[408404719,1773570648166,-10000.0,0.0003895,2]
[408404720,1773570648178,-5838.24569422,0.0003895,2]
[408404721,1773570648188,-21911.71698024,0.00039,120]
[408404722,1773570648197,-156.95,0.00039041,30]
[408404723,1773570648206,-2600.0,0.00039082,14]
[408404724,1773570648215,-1700.0,0.00039082,14]
[408404725,1773570648225,-700.0,0.00039082,14]
[408404726,1773570648234,-1100.67,0.000391,30]
[408404727,1773570648244,-1263.99,0.000391,14]
[408404728,1773570648256,-246.1232,0.000391,30]
[408404729,1773570648265,-246.1232,0.000393,30]
[408404730,1773570648274,-2000.0,0.000393,2]
[408404731,1773570648283,-1000.0,0.00039452,120]
[408404732,1773570648292,-518.0,0.000395,22]
[408404733,1773570648301,-350.0,0.00039518,7]
[408404734,1773570648310,-4342.22,0.00039666,2]
[408404735,1773570648319,-246.1232,0.000397,30]
[408404736,1773570648328,-1527.99559368,0.00039724,2]
[408404737,1773570648337,-512.75059119,0.00039726,120]
[408404738,1773570648346,-1000.0,0.00039726,120]
[408404739,1773570648355,-426.009444,0.000399,2]
[408404740,1773570648364,-9629.77525966,0.000399,30]
[408404741,1773570648373,-246.1232,0.000399,30]
[408404742,1773570648382,-2600.0,0.00039904,14]
[408404743,1773570648391,-1700.0,0.00039904,14]
[408404744,1773570648399,-700.0,0.00039904,14]
[408404745,1773570648409,-400.0,0.0003997,2]
[408404746,1773570648419,-151.0,0.00039997,14]
[408404747,1773570648428,-1067.54895647,0.00039999,30]
[408404748,1773570648437,-1107.50977528,0.00039999,30]
[408404749,1773570648446,-161.0,0.0004,120]
[408404750,1773570648455,-165.0,0.0004,120]
[408404751,1773570648464,-846.08498289,0.0004,2]
[408404752,1773570648473,-3276.5156884,0.0004,120]
[408404753,1773570648482,-477.12749073,0.0004,30]
[408404754,1773570648491,-12505.78206468,0.0004,30]
[408404755,1773570648500,-1000.0,0.0004,2]
[408404756,1773570648509,-159.63173107,0.0004,120]
[408404757,1773570648518,-2000.71419158,0.0004,30]
[408404758,1773570648528,-213.81697425,0.0004,30]
[408404759,1773570648537,-814.03004457,0.0004,3]
[408404760,1773570648547,-393.1620944,0.0004,2]
[408404761,1773570648556,-1571.03734489,0.0004,2]
[408404762,1773570648565,-14894.72440637,0.0004,30]
[408404763,1773570648574,-225.83145556,0.0004,2]
[408404764,1773570648584,-15103.35594802,0.0004,30]
[408404765,1773570648593,-962.88809868,0.0004,2]
[408404766,1773570648602,-12154.02216183,0.0004,120]
[408404767,1773570648610,-153245.62183919,0.0004,30]
[408404768,1773570648619,-283.08288188,0.0004,30]
[408404769,1773570648627,-540.0,0.0004,30]
[408404770,1773570648636,-708.9386557,0.0004,2]
[408404771,1773570648646,-1680.98393624,0.0004,30]
[408404772,1773570648654,-316.82236682,0.0004,2]
[408404773,1773570648663,-162.68413495,0.0004,2]
[408404774,1773570648673,-469.87233333,0.0004,30]
[408404775,1773570648682,-206.05,0.0004,120]
[408404776,1773570648691,-204.22317442,0.0004,120]
[408404777,1773570648700,-504.54772587,0.0004,30]
[408404778,1773570648709,-159.316698,0.0004,7]
[408404779,1773570648718,-151.0,0.0004,28]
[408404780,1773570648727,-151.0,0.0004,28]
[408404781,1773570648736,-256.242297,0.0004,28]
[408404782,1773570648745,-151.0,0.0004,120]
[408404783,1773570648753,-151.0,0.0004,120]
[408404784,1773570648763,-175.875112,0.0004,120]
[408404785,1773570648772,-151.22,0.0004,2]
[408404786,1773570648781,-151.22,0.0004,2]
[408404787,1773570648790,-151.22,0.0004,2]
[408404788,1773570648799,-151.22,0.0004,2]
[408404789,1773570648808,-151.22,0.0004,2]
[408404790,1773570648817,-151.22,0.0004,2]
[408404791,1773570648828,-151.22,0.0004,2]
[408404792,1773570648837,-151.22,0.0004,2]
[408404793,1773570648846,-151.22,0.0004,2]
[408404794,1773570648855,-151.22,0.0004,2]
[408404795,1773570648865,-151.22,0.0004,2]
[408404796,1773570648874,-151.22,0.0004,2]
[408404797,1773570648883,-151.22,0.0004,2]
[408404798,1773570648892,-151.22,0.0004,2]
[408404799,1773570648901,-151.22,0.0004,2]
[408404800,1773570648910,-151.22,0.0004,2]
[408404801,1773570648920,-151.22,0.0004,2]
[408404802,1773570648930,-151.22,0.0004,2]
[408404803,1773570648942,-151.22,0.0004,2]
[408404804,1773570648952,-151.22,0.0004,2]
[408404805,1773570648966,-151.22,0.0004,2]
[408404806,1773570648978,-151.22,0.0004,2]
[408404807,1773570648988,-151.22,0.0004,2]
[408404808,1773570648999,-151.22,0.0004,2]
[408404809,1773570649010,-151.22,0.0004,2]
[408404810,1773570649021,-151.22,0.0004,2]
[408404811,1773570649032,-151.22,0.0004,2]
[408404812,1773570649042,-151.22,0.0004,2]
[408404813,1773570649051,-151.22,0.0004,2]
[408404814,1773570649060,-151.22,0.0004,2]
[408404815,1773570649069,-1000.0,0.0004,120]
[408404816,1773570649182,-246.1232,0.000401,30]
[408404817,1773570649191,-1000.0,0.00040274,120]
[408404818,1773570649200,-246.1232,0.000403,30]
[408404819,1773570649209,-246.1232,0.000405,30]
[408404820,1773570649218,-1000.0,0.00040548,120]
[408404821,1773570649227,-246.1232,0.000407,30]
[408404822,1773570649236,-200.0,0.000407,14]
[408404823,1773570649246,-6812.9368064,0.00040721,28]
[408404824,1773570649255,-2600.0,0.00040726,14]
[408404825,1773570649264,-1700.0,0.00040726,14]
[408404826,1773570649273,-700.0,0.00040726,14]
[408404827,1773570649282,-3975.35,0.000408,30]
[408404828,1773570649291,-27629.66630806,0.000408,60]
[408404829,1773570649300,-1198.06,0.000408,120]
[408404830,1773570649309,-200.0,0.000408,14]
[408404831,1773570649318,-191.20135912,0.00040818,2]
[408404832,1773570649327,-500.0,0.00040818,2]
[408404833,1773570649336,-150.0,0.00040818,2]
[408404834,1773570649345,-155.45652414,0.00040818,2]
[408404835,1773570649354,-150.0,0.00040818,2]
[408404836,1773570649364,-150.0,0.00040818,2]
[408404837,1773570649373,-153.16199732,0.00040818,2]
[408404838,1773570649382,-150.0,0.00040818,2]
[408404839,1773570649391,-155.82159694,0.00040818,2]
[408404840,1773570649400,-151.46727953,0.00040818,2]
[408404841,1773570649410,-212.76778111,0.00040818,2]
[408404842,1773570649419,-154.43035368,0.00040818,2]
[408404843,1773570649428,-500.0,0.00040818,2]
[408404844,1773570649437,-150.0,0.00040818,2]
[408404845,1773570649446,-155.06271841,0.00040818,2]
[408404846,1773570649455,-1489.97049065,0.0004082,2]
[408404847,1773570649464,-1489.97049065,0.0004082,2]
[408404848,1773570649472,-1489.97049065,0.0004082,2]
[408404849,1773570649481,-1489.97049065,0.0004082,2]
[408404850,1773570649490,-1489.97049064,0.0004082,2]
[408404851,1773570649499,-1489.97049064,0.0004082,2]
[408404852,1773570649508,-1489.97049064,0.0004082,2]
[408404853,1773570649518,-550.95001552,0.00040821,31]
[408404854,1773570649527,-500.0,0.00040821,2]
[408404855,1773570649535,-500.0,0.00040821,2]
[408404856,1773570649544,-500.0,0.00040821,2]
[408404857,1773570649553,-407.22884135,0.00040821,2]
[408404858,1773570649562,-500.0,0.00040821,2]
[408404859,1773570649571,-500.0,0.00040821,2]
[408404860,1773570649580,-500.0,0.00040821,2]
[408404861,1773570649589,-500.0,0.00040821,2]
[408404862,1773570649598,-500.0,0.00040821,2]
[408404863,1773570649607,-500.0,0.00040821,2]
[408404864,1773570649616,-300.99,0.00040821,2]
[408404865,1773570649626,-176.17667065,0.00040821,2]
[408404866,1773570649635,-175.30271605,0.00040821,2]
[408404867,1773570649644,-153.07542946,0.00040821,2]
[408404868,1773570649653,-834.65,0.00040821,2]
[408404869,1773570649661,-834.65,0.00040821,2]
[408404870,1773570649670,-834.65,0.00040821,2]
[408404871,1773570649679,-834.65,0.00040821,2]
[408404872,1773570649688,-834.65,0.00040821,2]
[408404873,1773570649697,-834.65,0.00040821,2]
[408404874,1773570649705,-834.65,0.00040821,2]
[408404875,1773570649714,-834.65,0.00040821,2]
[408404876,1773570649724,-834.65,0.00040821,2]
[408404877,1773570649734,-834.65,0.00040821,2]
[408404878,1773570649743,-834.65,0.00040821,2]
[408404879,1773570649751,-834.65,0.00040821,2]
[408404880,1773570649761,-834.65,0.00040821,2]
[408404881,1773570649771,-834.65,0.00040821,2]
[408404882,1773570649780,-834.65,0.00040821,2]
[408404883,1773570649789,-834.65,0.00040821,2]
[408404884,1773570649798,-834.65,0.00040821,2]
[408404885,1773570649807,-834.65,0.00040821,2]
[408404886,1773570649816,-834.65,0.00040821,2]
[408404887,1773570649825,-834.65,0.00040821,2]
[408404888,1773570649833,-834.65,0.00040821,2]
[408404889,1773570649842,-834.65,0.00040821,2]
[408404890,1773570649851,-834.65,0.00040821,2]
[408404891,1773570649860,-834.77239113,0.00040821,2]
[408404892,1773570649869,-500.0,0.00040821,2]
[408404893,1773570649878,-500.0,0.00040821,2]
[408404894,1773570649886,-500.0,0.00040821,2]
[408404895,1773570649895,-500.0,0.00040821,2]
[408404896,1773570649905,-500.0,0.00040821,2]
[408404897,1773570649914,-500.0,0.00040821,2]
[408404898,1773570649923,-500.0,0.00040821,2]
[408404899,1773570649931,-500.0,0.00040821,2]
[408404900,1773570649940,-500.0,0.00040821,2]
[408404901,1773570649949,-500.0,0.00040821,2]
[408404902,1773570649958,-500.0,0.00040821,2]
[408404903,1773570649967,-500.0,0.00040821,2]
[408404904,1773570649976,-500.0,0.00040821,2]
[408404905,1773570649985,-500.0,0.00040821,2]
[408404906,1773570649994,-500.0,0.00040821,2]
[408404907,1773570650004,-537.83120585,0.00040821,2]
[408404908,1773570650013,-500.0,0.00040821,2]
[408404909,1773570650022,-500.0,0.00040821,2]
[408404910,1773570650031,-500.0,0.00040821,2]
[408404911,1773570650040,-500.0,0.00040821,2]
[408404912,1773570650049,-500.0,0.00040821,2]
[408404913,1773570650059,-187.64928058,0.00040821,2]
[408404914,1773570650068,-500.0,0.00040821,2]
[408404915,1773570650078,-500.0,0.00040821,2]
[408404916,1773570650088,-500.0,0.00040821,2]
[408404917,1773570650097,-186.58657684,0.00040821,2]
[408404918,1773570650107,-500.0,0.00040821,2]
[408404919,1773570650116,-500.0,0.00040821,2]
[408404920,1773570650125,-500.0,0.00040821,2]
[408404921,1773570650135,-500.0,0.00040821,2]
[408404922,1773570650144,-500.0,0.00040821,2]
[408404923,1773570650155,-500.0,0.00040821,2]
[408404924,1773570650171,-500.0,0.00040821,2]
[408404925,1773570650191,-500.0,0.00040821,2]
[408404926,1773570650203,-500.0,0.00040821,2]
[408404927,1773570650217,-500.0,0.00040821,2]
[408404928,1773570650232,-500.0,0.00040821,2]
[408404929,1773570650248,-500.0,0.00040821,2]
[408404930,1773570650265,-544.24431645,0.00040821,2]
[408404931,1773570650278,-156.83229056,0.00040821,2]
[408404932,1773570650289,-151.72696992,0.00040821,2]
[408404933,1773570650302,-771.74,0.00040821,2]
[408404934,1773570650316,-771.74,0.00040821,2]
[408404935,1773570650329,-771.74,0.00040821,2]
[408404936,1773570650343,-771.74,0.00040821,2]
[408404937,1773570650357,-771.74,0.00040821,2]
[408404938,1773570650371,-771.74,0.00040821,2]
[408404939,1773570650386,-771.74,0.00040821,2]
[408404940,1773570650401,-771.74,0.00040821,2]
[408404941,1773570650415,-771.74,0.00040821,2]
[408404942,1773570650428,-771.74,0.00040821,2]
[408404943,1773570650441,-771.74,0.00040821,2]
[408404944,1773570650456,-771.74,0.00040821,2]
[408404945,1773570650471,-771.74,0.00040821,2]
[408404946,1773570650484,-771.74,0.00040821,2]
[408404947,1773570650497,-771.74,0.00040821,2]
[408404948,1773570650508,-771.74,0.00040821,2]
[408404949,1773570650519,-771.74,0.00040821,2]
[408404950,1773570650536,-771.74,0.00040821,2]
[408404951,1773570650548,-771.74,0.00040821,2]
[408404952,1773570650560,-771.74,0.00040821,2]
[408404953,1773570650571,-771.74,0.00040821,2]
[408404954,1773570650586,-771.74,0.00040821,2]
[408404955,1773570650599,-771.74,0.00040821,2]
[408404956,1773570650611,-771.75436354,0.00040821,2]
[408404957,1773570650624,-171.42991513,0.00040821,2]
[408404958,1773570650637,-174.10475423,0.00040821,2]
[408404959,1773570650649,-500.0,0.00040821,2]
[408404960,1773570650661,-154.82516968,0.00040821,2]
[408404961,1773570650674,-150.35614638,0.00040821,2]
[408404962,1773570650687,-182.64780844,0.00040821,2]
[408404963,1773570650699,-188.85406912,0.00040821,2]
[408404964,1773570650712,-151.0,0.00040821,120]
[408404965,1773570650725,-211.91175615,0.00040821,2]
[408404966,1773570650737,-151.0,0.00040821,120]
[408404967,1773570650751,-151.0,0.00040821,120]
[408404968,1773570650765,-155.377736,0.00040821,120]
[408404969,1773570650778,-184.75152126,0.00040821,2]
[408404970,1773570650791,-153.73912029,0.00040821,2]
[408404971,1773570650804,-159.07992912,0.00040821,2]
[408404972,1773570650817,-221.25840959,0.00040821,2]
[408404973,1773570650829,-181.22131884,0.00040821,2]
[408404974,1773570650842,-152.25578072,0.00040821,2]
[408404975,1773570650855,-223.64475473,0.00040821,2]
[408404976,1773570650867,-183.2097005,0.00040821,2]
[408404977,1773570650881,-500.0,0.00040821,2]
[408404978,1773570650894,-500.0,0.00040821,2]
[408404979,1773570650906,-500.0,0.00040821,2]
[408404980,1773570650919,-500.0,0.00040821,2]
[408404981,1773570650932,-500.0,0.00040821,2]
[408404982,1773570650945,-500.0,0.00040821,2]
[408404983,1773570650957,-500.0,0.00040821,2]
[408404984,1773570650969,-500.0,0.00040821,2]
[408404985,1773570650982,-500.0,0.00040821,2]
[408404986,1773570650994,-500.0,0.00040821,2]
[408404987,1773570651006,-473.70584513,0.00040821,2]
[408404988,1773570651018,-155.92399679,0.00040821,2]
[408404989,1773570651031,-500.0,0.00040821,2]
[408404990,1773570651043,-500.0,0.00040821,2]
[408404991,1773570651056,-500.0,0.00040821,2]
[408404992,1773570651068,-500.0,0.00040821,2]
[408404993,1773570651081,-500.0,0.00040821,2]
[408404994,1773570651094,-500.0,0.00040821,2]
[408404995,1773570651107,-500.0,0.00040821,2]
[408404996,1773570651119,-500.0,0.00040821,2]
[408404997,1773570651132,-500.0,0.00040821,2]
[408404998,1773570651144,-500.0,0.00040821,2]
[408404999,1773570651156,-500.0,0.00040821,2]
[408405000,1773570651168,-500.0,0.00040821,2]
[408405001,1773570651183,-500.0,0.00040821,2]
[408405002,1773570651195,-500.0,0.00040821,2]
[408405003,1773570651206,-500.0,0.00040821,2]
[408405004,1773570651219,-500.0,0.00040821,2]
[408405005,1773570651231,-500.0,0.00040821,2]
[408405006,1773570651243,-237.44445126,0.00040821,2]
[408405007,1773570651256,-194.68629439,0.00040821,2]
[408405008,1773570651269,-500.0,0.00040821,2]
[408405009,1773570651282,-500.0,0.00040821,2]
[408405010,1773570651296,-500.0,0.00040821,2]
[408405011,1773570651308,-500.0,0.00040821,2]
[408405012,1773570651318,-280.97332104,0.00040821,2]
[408405013,1773570651327,-194.72323926,0.00040821,2]
[408405014,1773570651337,-150.5874429,0.00040821,2]
[408405015,1773570651346,-161.58621418,0.00040821,2]
[408405016,1773570651356,-164.05436096,0.00040821,2]
[408405017,1773570651365,-165.80008881,0.00040821,2]
[408405018,1773570651375,-223.430848,0.00040821,2]
[408405019,1773570651384,-164.95755339,0.00040821,2]
[408405020,1773570651393,-150.05558329,0.00040821,2]
[408405021,1773570651403,-182.94155753,0.00040821,2]
[408405022,1773570651412,-195.72502257,0.00040821,2]
[408405023,1773570651422,-152.14790811,0.00040821,2]
[408405024,1773570651431,-160.61992386,0.00040821,2]
[408405025,1773570651440,-529.30021234,0.00040821,2]
[408405026,1773570651449,-163.16282213,0.00040821,2]
[408405027,1773570651459,-171.78715339,0.00040821,2]
[408405028,1773570651657,-155.18832528,0.00040821,2]
[408405029,1773570651672,-176.0943771,0.00040821,2]
[408405030,1773570651681,-187.77425532,0.00040821,2]
[408405031,1773570651690,-165.14088187,0.00040821,2]
[408405032,1773570651699,-500.0,0.00040821,2]
[408405033,1773570651708,-500.0,0.00040821,2]
[408405034,1773570651717,-500.0,0.00040821,2]
[408405035,1773570651727,-500.0,0.00040821,2]
[408405036,1773570651735,-500.0,0.00040821,2]
[408405037,1773570651744,-500.0,0.00040821,2]
[408405038,1773570651753,-500.0,0.00040821,2]
[408405039,1773570651761,-500.0,0.00040821,2]
[408405040,1773570651770,-500.0,0.00040821,2]
[408405041,1773570651779,-500.0,0.00040821,2]
[408405042,1773570651788,-500.0,0.00040821,2]
[408405043,1773570651796,-500.0,0.00040821,2]
[408405044,1773570651805,-500.0,0.00040821,2]
[408405045,1773570651815,-500.0,0.00040821,2]
[408405046,1773570651824,-500.0,0.00040821,2]
[408405047,1773570651833,-500.0,0.00040821,2]
[408405048,1773570651842,-500.0,0.00040821,2]
[408405049,1773570651852,-500.0,0.00040821,2]
[408405050,1773570651861,-500.0,0.00040821,2]
[408405051,1773570651870,-550.76648267,0.00040821,2]
[408405052,1773570651879,-200.21466675,0.00040821,2]
[408405053,1773570651888,-151.19959722,0.00040821,2]
[408405054,1773570651898,-212.6867018,0.00040821,2]
[408405055,1773570651907,-500.0,0.00040821,2]
[408405056,1773570651916,-500.0,0.00040821,2]
[408405057,1773570651926,-500.0,0.00040821,2]
[408405058,1773570651935,-168.85981479,0.00040821,2]
[408405059,1773570651945,-174.22687854,0.00040821,2]
[408405060,1773570651956,-500.0,0.00040821,2]
[408405061,1773570651965,-500.0,0.00040821,2]
[408405062,1773570651976,-500.0,0.00040821,2]
[408405063,1773570651986,-500.0,0.00040821,2]
[408405064,1773570651995,-500.0,0.00040821,2]
[408405065,1773570652003,-500.0,0.00040821,2]
[408405066,1773570652012,-500.0,0.00040821,2]
[408405067,1773570652022,-500.0,0.00040821,2]
[408405068,1773570652031,-520.55581488,0.00040821,2]
[408405069,1773570652040,-160.05391422,0.00040821,2]
[408405070,1773570652049,-184.78589314,0.00040821,2]
[408405071,1773570652058,-500.0,0.00040821,2]
[408405072,1773570652068,-500.0,0.00040821,2]
[408405073,1773570652077,-500.0,0.00040821,2]
[408405074,1773570652087,-500.0,0.00040821,2]
[408405075,1773570652096,-500.0,0.00040821,2]
[408405076,1773570652105,-500.0,0.00040821,2]
[408405077,1773570652114,-500.0,0.00040821,2]
[408405078,1773570652123,-500.0,0.00040821,2]
[408405079,1773570652133,-500.0,0.00040821,2]
[408405080,1773570652142,-500.0,0.00040821,2]
[408405081,1773570652152,-425.57172708,0.00040821,2]
[408405082,1773570652161,-500.0,0.00040821,2]
[408405083,1773570652171,-500.0,0.00040821,2]
[408405084,1773570652183,-500.0,0.00040821,2]
[408405085,1773570652193,-500.0,0.00040821,2]
[408405086,1773570652203,-500.0,0.00040821,2]
[408405087,1773570652212,-500.0,0.00040821,2]
[408405088,1773570652223,-500.0,0.00040821,2]
[408405089,1773570652232,-500.0,0.00040821,2]
[408405090,1773570652242,-500.0,0.00040821,2]
[408405091,1773570652253,-500.0,0.00040821,2]
[408405092,1773570652262,-500.0,0.00040821,2]
[408405093,1773570652271,-500.0,0.00040821,2]
[408405094,1773570652282,-194.46764133,0.00040821,2]
[408405095,1773570652291,-500.0,0.00040821,2]
[408405096,1773570652300,-500.0,0.00040821,2]
[408405097,1773570652310,-500.0,0.00040821,2]
[408405098,1773570652320,-500.0,0.00040821,2]
[408405099,1773570652331,-500.0,0.00040821,2]
[408405100,1773570652340,-500.0,0.00040821,2]
[408405101,1773570652350,-574.85172267,0.00040821,2]
[408405102,1773570652359,-500.0,0.00040821,2]
[408405103,1773570652368,-500.0,0.00040821,2]
[408405104,1773570652377,-500.0,0.00040821,2]
[408405105,1773570652387,-500.0,0.00040821,2]
[408405106,1773570652396,-500.0,0.00040821,2]
[408405107,1773570652405,-500.0,0.00040821,2]
[408405108,1773570652415,-500.0,0.00040821,2]
[408405109,1773570652424,-500.0,0.00040821,2]
[408405110,1773570652433,-500.0,0.00040821,2]
[408405111,1773570652442,-500.0,0.00040821,2]
[408405112,1773570652452,-500.0,0.00040821,2]
[408405113,1773570652461,-500.0,0.00040821,2]
[408405114,1773570652470,-500.0,0.00040821,2]
[408405115,1773570652479,-500.0,0.00040821,2]
[408405116,1773570652488,-500.0,0.00040821,2]
[408405117,1773570652498,-500.0,0.00040821,2]
[408405118,1773570652508,-500.0,0.00040821,2]
[408405119,1773570652517,-500.0,0.00040821,2]
[408405120,1773570652526,-500.0,0.00040821,2]
[408405121,1773570652535,-572.01806934,0.00040821,2]
[408405122,1773570652545,-153.32820558,0.00040821,2]
[408405123,1773570652554,-190.04847436,0.00040821,2]
[408405124,1773570652563,-500.0,0.00040821,2]
[408405125,1773570652572,-500.0,0.00040821,2]
[408405126,1773570652581,-500.0,0.00040821,2]
[408405127,1773570652590,-500.0,0.00040821,2]
[408405128,1773570652600,-500.0,0.00040821,2]
[408405129,1773570652609,-536.32061041,0.00040821,2]
[408405130,1773570652619,-6055.72,0.00040821,2]
[408405131,1773570652628,-6055.72,0.00040821,2]
[408405132,1773570652637,-6055.72,0.00040821,2]
[408405133,1773570652646,-6055.72,0.00040821,2]
[408405134,1773570652655,-6055.72,0.00040821,2]
[408405135,1773570652665,-6055.72,0.00040821,2]
[408405136,1773570652674,-6055.72,0.00040821,2]
[408405137,1773570652683,-6055.72,0.00040821,2]
[408405138,1773570652692,-6055.72,0.00040821,2]
[408405139,1773570652702,-6055.72,0.00040821,2]
[408405140,1773570652711,-6055.72,0.00040821,2]
[408405141,1773570652721,-6055.72,0.00040821,2]
[408405142,1773570652731,-6055.72,0.00040821,2]
[408405143,1773570652740,-6055.72,0.00040821,2]
[408405144,1773570652749,-6055.72,0.00040821,2]
[408405145,1773570652758,-6055.72,0.00040821,2]
[408405146,1773570652767,-6055.72,0.00040821,2]
[408405147,1773570652777,-6055.72,0.00040821,2]
[408405148,1773570652786,-6055.72,0.00040821,2]
[408405149,1773570652795,-6055.72,0.00040821,2]
[408405150,1773570652804,-6055.72,0.00040821,2]
[408405151,1773570652813,-6055.72,0.00040821,2]
[408405152,1773570652823,-6055.72,0.00040821,2]
[408405153,1773570652832,-6055.83325398,0.00040821,2]
[408405154,1773570652841,-172.4006273,0.00040821,2]
[408405155,1773570652851,-190.35794461,0.00040821,2]
[408405156,1773570652860,-486.40042023,0.00040821,2]
[408405157,1773570652869,-150.60096109,0.00040821,2]
[408405158,1773570652878,-321.12765153,0.00040821,2]
[408405159,1773570652887,-440.96103482,0.00040821,2]
[408405160,1773570652897,-250.28151239,0.00040821,2]
[408405161,1773570652906,-150.42054048,0.00040821,2]
[408405162,1773570652915,-189.43564541,0.00040821,2]
[408405163,1773570652924,-294.60928452,0.00040821,2]
[408405164,1773570652934,-271.93724377,0.00040821,2]
[408405165,1773570652943,-747.2,0.00040821,2]
[408405166,1773570652952,-747.2,0.00040821,2]
[408405167,1773570652962,-747.2,0.00040821,2]
[408405168,1773570652970,-747.2,0.00040821,2]
[408405169,1773570652979,-747.2,0.00040821,2]
[408405170,1773570652989,-747.2,0.00040821,2]
[408405171,1773570652998,-747.2,0.00040821,2]
[408405172,1773570653006,-747.2,0.00040821,2]
[408405173,1773570653015,-747.2,0.00040821,2]
[408405174,1773570653024,-172.2764784,0.00040821,2]
[408405175,1773570653033,-747.2,0.00040821,2]
[408405176,1773570653044,-747.2,0.00040821,2]
[408405177,1773570653053,-169.60923278,0.00040821,2]
[408405178,1773570653062,-747.2,0.00040821,2]
[408405179,1773570653072,-500.0,0.00040821,2]
[408405180,1773570653081,-747.2,0.00040821,2]
[408405181,1773570653091,-500.0,0.00040821,2]
[408405182,1773570653101,-747.2,0.00040821,2]
[408405183,1773570653110,-500.0,0.00040821,2]
[408405184,1773570653120,-747.2,0.00040821,2]
[408405185,1773570653130,-500.0,0.00040821,2]
[408405186,1773570653140,-747.2,0.00040821,2]
[408405187,1773570653150,-500.0,0.00040821,2]
[408405188,1773570653159,-747.2,0.00040821,2]
[408405189,1773570653168,-500.0,0.00040821,2]
[408405190,1773570653180,-747.2,0.00040821,2]
[408405191,1773570653189,-500.0,0.00040821,2]
[408405192,1773570653199,-500.0,0.00040821,2]
[408405193,1773570653208,-747.2,0.00040821,2]
[408405194,1773570653218,-747.2,0.00040821,2]